[Event "2nd Hersonissos Open 2018"]
[Site "Hersonissos"]
[Date "2018.06.20"]
[Round "5"]
[White "Aggelakis, Ilias"]
[Black "Warnk, Torsten"]
[Result "1/2-1/2"]
[ECO "A39"]
[WhiteElo "1683"]
[BlackElo "1853"]
[Annotator "NA"]
[PlyCount "123"]
[EventDate "2018.06.16"]
[EventType "swiss"]
[EventCountry "GRE"]
[SourceTitle "playchess.com"]
[Source "ChessBase"]
[SourceQuality "1"]
[TimeControl "5400+30"]

1. c4 {[%emt 0:00:00]} Nf6 {[%emt 0:00:37]} 2. Nf3 {[%emt 0:00:00]} g6 {[%emt 0:00:20]} 3. g3 {[%emt 0:00:00]} Bg7 {[%emt 0:00:14]} 4. Bg2 {[%emt 0:00:00]} O-O {[%emt 0:00:10]} 5. O-O {[%emt 0:00:00]} c5 {[%emt 0:01:28]} 6. Nc3 {[%emt 0:07:52]} Nc6 {[%emt 0:00:16]} 7. d4 {[%emt 0:05:18]} cxd4 {[%emt 0:05:08]} 8. Nxd4 {[%emt 0:00:06]} a6 {[%emt 0:00:55]} 9. a3 {[%emt 0:11:25]} e6 {[%emt 0:05:59]} 10. Rb1 {[%emt 0:07:36]} Qc7 {[%emt 0:03:17]} 11. Nxc6 {[%emt 0:03:37]} dxc6 {[%emt 0:00:51]} 12. Qc2 {[%emt 0:03:15]} Rb8 {[%emt 0:04:17]} 13. b4 {[%emt 0:02:05]} b5 {[%emt 0:02:04]} 14. Ne4 {[%emt 0:07:32]} Nxe4 {[%emt 0:08:12]} 15. Bxe4 {[%emt 0:00:03]} Bb7 {[%emt 0:11:28]} 16. Be3 {[%emt 0:03:07]} Rfc8 {[%emt 0:06:41]} 17. Rfd1 {[%emt 0:01:15]} Rd8 {[%emt 0:06:56]} 18. c5 {[%emt 0:02:56]} Rxd1+ {[%emt 0:01:36]} 19. Rxd1 {[%emt 0:00:06]} Rd8 {[%emt 0:00:29]} 20. Rd3 {[%emt 0:00:27]} Kf8 {[%emt 0:08:34]} 21. Qd2 {[%emt 0:07:29]} Rxd3 {[%emt 0:00:19]} 22. Qxd3 {[%emt 0:00:09]} Ke8 {[%emt 0:00:16]} 23. Bd4 {[%emt 0:03:05]} e5 {[%emt 0:03:54]} 24. Bb2 {[%emt 0:00:06]} Bc8 {[%emt 0:05:13]} 25. Qf3 {[%emt 0:04:12]} Bd7 {[%emt 0:08:29]} 26. Bc2 {[%emt 0:00:30]} Be6 {[%emt 0:00:30]} 27. e4 {[%emt 0:00:30]} Qd7 {[%emt 0:00:30]} 28. Qd3 {[%emt 0:00:30]} Bc4 {[%emt 0:00:30]} 29. Qxd7+ {[%emt 0:00:30]} Kxd7 {[%emt 0:00:30]} 30. f4 {[%emt 0:00:30]} f6 {[%emt 0:00:30]} 31. fxe5 {[%emt 0:00:30]} fxe5 {[%emt 0:00:30]} 32. Bc1 {[%emt 0:00:30]} Be6 {[%emt 0:00:30]} 33. Kf2 {[%emt 0:00:30]} Bc4 {[%emt 0:00:30]} 34. Be3 {[%emt 0:00:30]} Ke6 {[%emt 0:00:30]} 35. Bd1 {[%emt 0:00:30]} Kd7 {[%emt 0:00:30]} 36. Bg4+ {[%emt 0:00:30]} Be6 {[%emt 0:00:30]} 37. Be2 {[%emt 0:00:30]} Bf6 38. Kg2 {[%emt 0:03:24]} Kc7 {[%emt 0:01:00]} 39. h3 {[%emt 0:00:29]} Kb7 {[%emt 0:00:27]} 40. Kh2 {[%emt 0:00:00]} Be7 {[%emt 0:00:00]} 41. Kg2 {[%emt 0:00:00]} Bb3 {[%emt 0:00:00]} 42. Kh2 {[%emt 0:00:00]} Bc2 {[%emt 0:00:00]} 43. Bf3 {[%emt 0:00:00]} a5 {[%emt 0:00:00]} 44. h4 {[%emt 0:00:00]} Bd3 {[%emt 0:00:00]} 45. Kg2 {[%emt 0:00:00]} Bf8 {[%emt 0:00:00]} 46. g4 {[%emt 0:00:00]} Be7 {[%emt 0:00:00]} 47. Kg3 {[%emt 0:00:00]} axb4 {[%emt 0:00:00]} 48. axb4 {[%emt 0:00:00]} Bd8 {[%emt 0:00:00]} 49. Bg2 {[%emt 0:00:00]} Be2 {[%emt 0:00:38]} 50. g5 {[%emt 0:00:00]} Bc4 {[%emt 0:01:18]} 51. Bh3 {[%emt 0:00:00]} Kc7 {[%emt 0:00:17]} 52. h5 {[%emt 0:00:00]} Bf7 {[%emt 0:04:38]} 53. h6 {[%emt 0:00:00]} Kb7 {[%emt 0:02:03]} 54. Bg4 {[%emt 0:00:00]} Bc7 {[%emt 0:00:20]} 55. Bf3 {[%emt 0:00:00]} Kc8 {[%emt 0:00:26]} 56. Bg4+ {[%emt 0:00:00]} Kd8 {[%emt 0:00:05]} 57. Bd2 {[%emt 0:00:00]} Ke7 {[%emt 0:00:25]} 58. Be3 {[%emt 0:00:00]} Be6 {[%emt 0:02:04]} 59. Bxe6 {[%emt 0:00:00]} Kxe6 {[%emt 0:00:07]} 60. Kg4 {[%emt 0:00:00]} Bd8 {[%emt 0:00:46]} 61. Bd2 {[%emt 0:00:00]} Be7 {[%emt 0:00:05]} 62. Be3 {[%emt 0:00:00]} 1/2-1/2

[Event "2nd Hersonissos Open 2018"]
[Site "Hersonissos"]
[Date "2018.06.20"]
[Round "5"]
[White "Mateev, Kaloyan Mateev"]
[Black "Storkebaum, Ulrike"]
[Result "1/2-1/2"]
[ECO "A01"]
[WhiteElo "1539"]
[BlackElo "1825"]
[Annotator "NA"]
[PlyCount "150"]
[EventDate "2018.06.16"]
[EventType "swiss"]
[EventCountry "GRE"]
[SourceTitle "playchess.com"]
[Source "ChessBase"]
[SourceQuality "1"]
[TimeControl "5400+30"]

1. b3 {[%emt 0:08:25]} e5 {[%emt 0:00:30]} 2. e3 {[%emt 0:00:31]} Nf6 {[%emt 0:00:47]} 3. Bb2 {[%emt 0:00:25]} Nc6 {[%emt 0:00:53]} 4. Bb5 {[%emt 0:00:36]} d6 {[%emt 0:01:13]} 5. d4 {[%emt 0:00:27]} exd4 {[%emt 0:01:36]} 6. exd4 {[%emt 0:01:16]} Bd7 {[%emt 0:01:32]} 7. Nf3 {[%emt 0:01:20]} Qe7+ {[%emt 0:01:00]} 8. Be2 {[%emt 0:03:43]} d5 {[%emt 0:01:12]} 9. O-O {[%emt 0:01:11]} Ne4 {[%emt 0:04:03]} 10. c4 {[%emt 0:03:25]} Be6 {[%emt 0:04:48]} 11. Nbd2 {[%emt 0:02:28]} Nxd2 {[%emt 0:06:47]} 12. Qxd2 {[%emt 0:00:45]} Qd7 {[%emt 0:05:03]} 13. Rfe1 {[%emt 0:06:45]} Bb4 {[%emt 0:03:14]} 14. Bc3 {[%emt 0:01:33]} Bxc3 {[%emt 0:00:41]} 15. Qxc3 {[%emt 0:00:06]} O-O {[%emt 0:01:31]} 16. Rad1 {[%emt 0:09:06]} h6 {[%emt 0:01:22]} 17. Ne5 {[%emt 0:02:18]} Nxe5 {[%emt 0:07:45]} 18. dxe5 {[%emt 0:01:20]} c6 {[%emt 0:02:48]} 19. Bf3 {[%emt 0:01:32]} Rfd8 {[%emt 0:01:33]} 20. cxd5 {[%emt 0:03:29]} cxd5 {[%emt 0:09:45]} 21. Qd4 {[%emt 0:00:45]} a5 {[%emt 0:04:05]} 22. Rd2 {[%emt 0:01:45]} a4 {[%emt 0:00:26]} 23. b4 {[%emt 0:01:00]} Qb5 {[%emt 0:06:31]} 24. Red1 {[%emt 0:01:13]} Rac8 {[%emt 0:00:24]} 25. Be2 {[%emt 0:04:23]} Qc6 {[%emt 0:04:33]} 26. b5 {[%emt 0:02:25]} Qc3 {[%emt 0:00:15]} 27. f4 {[%emt 0:08:57]} Qxd4+ {[%emt 0:07:08]} 28. Rxd4 {[%emt 0:00:07]} Rc2 {[%emt 0:01:18]} 29. R1d2 {[%emt 0:00:46]} Rxd2 {[%emt 0:07:14]} 30. Rxd2 {[%emt 0:00:07]} d4 {[%emt 0:01:26]} 31. Bd1 {[%emt 0:00:28]} a3 {[%emt 0:02:48]} 32. Bf3 {[%emt 0:06:08]} b6 {[%emt 0:00:55]} 33. Kf2 {[%emt 0:03:08]} Kf8 {[%emt 0:02:29]} 34. Be2 {[%emt 0:05:25]} g6 {[%emt 0:01:11]} 35. Rd3 {[%emt 0:09:34]} Ra8 {[%emt 0:03:10]} 36. Bf3 {[%emt 0:01:49]} Ra4 {[%emt 0:00:31]} 37. Bd1 {[%emt 0:03:18]} Ra5 {[%emt 0:02:14]} 38. Bb3 {[%emt 0:02:09]} Rxb5 {[%emt 0:02:21]} 39. Bxe6 {[%emt 0:00:21]} Rb2+ {[%emt 0:00:34]} 40. Kf3 {[%emt 0:00:00]} fxe6 {[%emt 0:00:00]} 41. Rxa3 {[%emt 0:00:00]} h5 {[%emt 0:00:00]} 42. h3 {[%emt 0:00:00]} Ke8 {[%emt 0:00:00]} 43. g3 {[%emt 0:00:00]} b5 {[%emt 0:00:00]} 44. Ke4 {[%emt 0:00:00]} Rd2 {[%emt 0:00:00]} 45. Rd3 {[%emt 0:00:00]} Rxa2 {[%emt 0:00:00]} 46. Kxd4 {[%emt 0:00:00]} Rb2 {[%emt 0:00:00]} 47. Ra3 {[%emt 0:00:00]} Rb1 {[%emt 0:00:00]} 48. Kc5 {[%emt 0:00:00]} b4 {[%emt 0:00:00]} 49. Ra8+ {[%emt 0:00:00]} Kd7 {[%emt 0:01:18]} 50. Ra7+ {[%emt 0:00:00]} Kc8 {[%emt 0:00:40]} 51. Rg7 {[%emt 0:03:00]} b3 {[%emt 0:00:56]} 52. Kc4 {[%emt 0:00:16]} b2 {[%emt 0:01:06]} 53. Kc3 {[%emt 0:00:27]} Rg1 {[%emt 0:00:15]} 54. Kxb2 {[%emt 0:00:08]} Rxg3 {[%emt 0:00:19]} 55. Re7 {[%emt 0:03:26]} Rxh3 {[%emt 0:00:42]} 56. Rxe6 {[%emt 0:00:09]} Rg3 {[%emt 0:00:31]} 57. Re7 {[%emt 0:01:33]} h4 {[%emt 0:00:25]} 58. Rh7 {[%emt 0:01:20]} h3 {[%emt 0:00:39]} 59. e6 {[%emt 0:00:23]} Kd8 {[%emt 0:00:27]} 60. Kc2 {[%emt 0:00:28]} Rg2+ {[%emt 0:00:51]} 61. Kd3 {[%emt 0:00:18]} h2 {[%emt 0:01:23]} 62. Ke3 {[%emt 0:00:21]} Rg1 {[%emt 0:01:44]} 63. Rxh2 {[%emt 0:00:57]} Ke7 {[%emt 0:00:24]} 64. Kf2 {[%emt 0:00:22]} Rg4 {[%emt 0:00:40]} 65. Kf3 {[%emt 0:00:01]} Rg1 {[%emt 0:00:15]} 66. Re2 {[%emt 0:00:02]} Rh1 {[%emt 0:00:19]} 67. Kg3 {[%emt 0:00:42]} Rh7 {[%emt 0:00:28]} 68. Kg4 {[%emt 0:00:13]} Rh5 {[%emt 0:00:23]} 69. Re3 {[%emt 0:01:43]} Rf5 {[%emt 0:00:32]} 70. Re1 {[%emt 0:00:50]} Rh5 {[%emt 0:00:24]} 71. Re3 {[%emt 0:00:44]} Rf5 {[%emt 0:00:25]} 72. Ra3 {[%emt 0:01:03]} Rb5 {[%emt 0:01:12]} 73. Ra6 {[%emt 0:00:07]} Rd5 {[%emt 0:00:36]} 74. Kf3 {[%emt 0:00:36]} Rb5 {[%emt 0:01:00]} 75. Kg4 {[%emt 0:01:11]} Rc5 1/2-1/2

[Event "2nd Hersonissos Open 2018"]
[Site "Hersonissos"]
[Date "2018.06.21"]
[Round "6"]
[White "L'Ami, Alina"]
[Black "Kadianis, Georgios"]
[Result "0-1"]
[ECO "D52"]
[WhiteElo "2307"]
[BlackElo "1917"]
[Annotator "NA"]
[PlyCount "118"]
[EventDate "2018.06.16"]
[EventType "swiss"]
[EventCountry "GRE"]
[SourceTitle "playchess.com"]
[Source "ChessBase"]
[SourceQuality "1"]
[TimeControl "5400+30"]

1. d4 {[%emt 0:05:44]} d5 {[%emt 0:00:08]} 2. c4 {[%emt 0:00:05]} c6 {[%emt 0:00:05]} 3. Nf3 {[%emt 0:00:07]} Nf6 {[%emt 0:00:10]} 4. Nc3 {[%emt 0:00:06]} e6 {[%emt 0:00:06]} 5. Bg5 {[%emt 0:00:21]} Nbd7 {[%emt 0:00:31]} 6. e3 {[%emt 0:00:11]} Qa5 {[%emt 0:00:58]} 7. Nd2 {[%emt 0:01:07]} Bb4 {[%emt 0:00:52]} 8. Rc1 {[%emt 0:00:11]} Ne4 {[%emt 0:03:01]} 9. Ncxe4 {[%emt 0:00:42]} dxe4 {[%emt 0:00:00]} 10. Bh4 {[%emt 0:00:08]} Qxa2 {[%emt 0:08:24]} 11. Be2 {[%emt 0:00:21]} Qa5 {[%emt 0:15:39]} 12. O-O {[%emt 0:03:34]} Bxd2 {[%emt 0:06:43]} 13. Ra1 {[%emt 0:00:06]} Qc7 {[%emt 0:15:48]} 14. Qxd2 {[%emt 0:02:52]} O-O {[%emt 0:00:20]} 15. Bg3 {[%emt 0:32:07]} Qd8 {[%emt 0:05:20]} 16. Rfd1 {[%emt 0:14:11]} Nf6 {[%emt 0:01:53]} 17. Qc2 {[%emt 0:01:53]} b6 {[%emt 0:01:52]} 18. c5 {[%emt 0:00:59]} b5 {[%emt 0:05:13]} 19. Bd6 {[%emt 0:02:43]} Re8 {[%emt 0:00:10]} 20. Kh1 {[%emt 0:11:17]} a5 {[%emt 0:01:41]} 21. f3 {[%emt 0:09:55]} exf3 {[%emt 0:00:54]} 22. gxf3 {[%emt 0:02:27]} Nd5 {[%emt 0:01:43]} 23. Qd2 {[%emt 0:01:46]} b4 {[%emt 0:03:23]} 24. e4 {[%emt 0:00:17]} Ne7 {[%emt 0:00:50]} 25. Bc4 {[%emt 0:01:46]} Ba6 {[%emt 0:01:57]} 26. Ba2 {[%emt 0:00:59]} Nc8 {[%emt 0:02:53]} 27. Be5 {[%emt 0:00:58]} Ne7 {[%emt 0:01:34]} 28. Rg1 {[%emt 0:00:27]} Ng6 {[%emt 0:01:01]} 29. Bd6 {[%emt 0:00:03]} Qh4 {[%emt 0:02:51]} 30. Rg4 {[%emt 0:01:22]} Qh3 {[%emt 0:00:59]} 31. Rg3 {[%emt 0:00:17]} Qh4 {[%emt 0:00:50]} 32. Rag1 {[%emt 0:00:37]} Kh8 {[%emt 0:01:33]} 33. Rg5 {[%emt 0:02:21]} Qh6 {[%emt 0:04:47]} 34. Qf2 {[%emt 0:01:43]} f6 {[%emt 0:03:07]} 35. R5g4 {[%emt 0:00:12]} a4 {[%emt 0:01:56]} 36. Bb1 {[%emt 0:00:39]} a3 {[%emt 0:01:07]} 37. bxa3 {[%emt 0:00:11]} bxa3 {[%emt 0:00:05]} 38. Ba2 {[%emt 0:00:50]} Ra7 {[%emt 0:01:48]} 39. Rb1 {[%emt 0:00:43]} f5 {[%emt 0:04:14]} 40. Rg3 {[%emt 0:00:00]} Bd3 {[%emt 0:00:00]} 41. Rb6 {[%emt 0:00:00]} fxe4 {[%emt 0:00:00]} 42. f4 {[%emt 0:00:00]} Nh4 {[%emt 0:00:00]} 43. Rh3 {[%emt 0:00:00]} e3 {[%emt 0:00:00]} 44. Rxe3 {[%emt 0:00:00]} Bf5 {[%emt 0:00:00]} 45. h3 {[%emt 0:00:00]} Qh5 {[%emt 0:00:00]} 46. Kh2 {[%emt 0:00:00]} Ra4 {[%emt 0:01:06]} 47. Rg3 {[%emt 0:01:26]} Ng6 {[%emt 0:01:51]} 48. Qe3 {[%emt 0:02:36]} Raa8 {[%emt 0:03:12]} 49. Rxc6 {[%emt 0:01:20]} Qd1 {[%emt 0:00:34]} 50. Rb6 {[%emt 0:01:11]} Nh4 {[%emt 0:01:43]} 51. Bb3 {[%emt 0:01:29]} a2 {[%emt 0:00:36]} 52. Bxd1 {[%emt 0:00:17]} a1=Q {[%emt 0:00:05]} 53. Be5 {[%emt 0:00:26]} Ra2+ {[%emt 0:00:45]} 54. Be2 {[%emt 0:00:01]} Bg6 {[%emt 0:00:37]} 55. d5 {[%emt 0:01:33]} Qd1 {[%emt 0:00:28]} 56. Bb2 {[%emt 0:00:35]} Qxd5 {[%emt 0:00:28]} 57. Qc3 {[%emt 0:00:25]} Ra7 {[%emt 0:00:36]} 58. c6 {[%emt 0:00:29]} Rc7 {[%emt 0:00:27]} 59. Re3 {[%emt 0:00:39]} Qg2# 0-1

[Event "2nd Hersonissos Open 2018"]
[Site "Hersonissos"]
[Date "2018.06.21"]
[Round "6"]
[White "Ranaldi, Lucas"]
[Black "Loshkarev, Dmitri"]
[Result "1-0"]
[ECO "A10"]
[WhiteElo "2283"]
[BlackElo "2089"]
[Annotator "NA"]
[PlyCount "107"]
[EventDate "2018.06.16"]
[EventType "swiss"]
[EventCountry "GRE"]
[SourceTitle "playchess.com"]
[Source "ChessBase"]
[SourceQuality "1"]
[TimeControl "5400+30"]

1. c4 {[%emt 0:01:38]} f5 {[%emt 0:00:10]} 2. g3 {[%emt 0:01:36]} Nf6 {[%emt 0:00:06]} 3. Nf3 {[%emt 0:02:31]} e6 {[%emt 0:00:07]} 4. Bg2 {[%emt 0:00:11]} d5 {[%emt 0:00:13]} 5. O-O {[%emt 0:00:22]} c6 {[%emt 0:00:42]} 6. d3 {[%emt 0:00:43]} Bd6 {[%emt 0:00:45]} 7. Nc3 {[%emt 0:13:35]} dxc4 {[%emt 0:04:29]} 8. dxc4 {[%emt 0:00:24]} O-O {[%emt 0:03:03]} 9. Qc2 {[%emt 0:04:11]} e5 {[%emt 0:04:46]} 10. e4 {[%emt 0:03:25]} Nxe4 {[%emt 0:01:21]} 11. Nxe4 {[%emt 0:00:43]} fxe4 {[%emt 0:00:12]} 12. Ng5 {[%emt 0:00:41]} Bf5 {[%emt 0:01:18]} 13. c5 {[%emt 0:02:24]} Be7 {[%emt 0:08:31]} 14. Rd1 {[%emt 0:05:38]} Qe8 {[%emt 0:03:44]} 15. Bxe4 {[%emt 0:27:27]} Bxe4 {[%emt 0:10:17]} 16. Nxe4 {[%emt 0:02:38]} Na6 {[%emt 0:08:43]} 17. Be3 {[%emt 0:03:57]} Nb4 {[%emt 0:13:58]} 18. Qb3+ {[%emt 0:02:01]} Nd5 {[%emt 0:00:20]} 19. Nc3 {[%emt 0:02:04]} Qf7 {[%emt 0:02:09]} 20. Nxd5 {[%emt 0:00:28]} cxd5 {[%emt 0:00:38]} 21. Qxd5 {[%emt 0:05:14]} Bf6 {[%emt 0:02:38]} 22. b3 {[%emt 0:01:37]} Rfd8 {[%emt 0:01:06]} 23. Qxf7+ {[%emt 0:00:37]} Kxf7 {[%emt 0:00:10]} 24. Kf1 {[%emt 0:01:05]} e4 {[%emt 0:03:19]} 25. Rac1 {[%emt 0:01:00]} Rxd1+ {[%emt 0:01:12]} 26. Rxd1 {[%emt 0:00:01]} Rd8 {[%emt 0:00:21]} 27. Rxd8 {[%emt 0:04:54]} Bxd8 {[%emt 0:00:20]} 28. c6 {[%emt 0:00:32]} bxc6 {[%emt 0:00:50]} 29. Bxa7 {[%emt 0:00:11]} Ke6 {[%emt 0:00:31]} 30. Ke2 {[%emt 0:00:42]} Kd5 {[%emt 0:00:33]} 31. Be3 {[%emt 0:00:34]} Be7 {[%emt 0:03:04]} 32. a4 {[%emt 0:01:42]} c5 {[%emt 0:05:21]} 33. Kd2 {[%emt 0:02:00]} Bd8 {[%emt 0:04:06]} 34. Kc2 {[%emt 0:01:00]} Ba5 {[%emt 0:00:54]} 35. Bd2 {[%emt 0:00:52]} Bc7 {[%emt 0:02:42]} 36. b4 {[%emt 0:08:08]} cxb4 {[%emt 0:04:35]} 37. Kb3 {[%emt 0:00:02]} Bb6 {[%emt 0:00:37]} 38. Be3 {[%emt 0:00:19]} Ba5 {[%emt 0:00:11]} 39. h3 {[%emt 0:00:27]} h5 {[%emt 0:02:14]} 40. Ba7 {[%emt 0:00:00]} g6 {[%emt 0:00:00]} 41. Be3 {[%emt 0:00:00]} Kd6 {[%emt 0:00:00]} 42. Kc4 {[%emt 0:00:00]} Kc6 {[%emt 0:00:00]} 43. h4 {[%emt 0:00:00]} b3 {[%emt 0:00:00]} 44. Kxb3 {[%emt 0:00:00]} Kd5 {[%emt 0:00:00]} 45. Ba7 {[%emt 0:00:00]} Bd8 {[%emt 0:00:00]} 46. Kb4 {[%emt 0:00:00]} g5 {[%emt 0:00:00]} 47. hxg5 {[%emt 0:00:00]} Bxg5 {[%emt 0:00:00]} 48. Be3 {[%emt 0:00:00]} Bd8 {[%emt 0:00:00]} 49. Kb5 {[%emt 0:00:00]} Kd6 {[%emt 0:00:00]} 50. Bf4+ {[%emt 0:00:00]} Kd7 {[%emt 0:00:00]} 51. a5 {[%emt 0:00:00]} h4 {[%emt 0:00:00]} 52. a6 {[%emt 0:00:46]} h3 {[%emt 0:00:00]} 53. g4 {[%emt 0:01:44]} Bg5 {[%emt 0:00:00]} 54. a7 {[%emt 0:00:16]} 1-0

[Event "2nd Hersonissos Open 2018"]
[Site "Hersonissos"]
[Date "2018.06.21"]
[Round "6"]
[White "Lirindzakis, Timotheos"]
[Black "Sielicki, Tomasz"]
[Result "1-0"]
[ECO "A56"]
[WhiteElo "2163"]
[BlackElo "1963"]
[Annotator "NA"]
[PlyCount "121"]
[EventDate "2018.06.16"]
[EventType "swiss"]
[EventCountry "GRE"]
[SourceTitle "playchess.com"]
[Source "ChessBase"]
[SourceQuality "1"]
[TimeControl "5400+30"]

1. d4 Nf6 {[%emt 0:01:37]} 2. c4 {[%emt 0:00:00]} c5 {[%emt 0:00:17]} 3. d5 {[%emt 0:00:10]} e5 {[%emt 0:00:17]} 4. Nc3 {[%emt 0:00:18]} d6 {[%emt 0:00:14]} 5. e4 {[%emt 0:00:16]} Nbd7 {[%emt 0:00:10]} 6. Bd3 {[%emt 0:00:20]} Be7 {[%emt 0:00:42]} 7. Nge2 {[%emt 0:00:22]} h5 {[%emt 0:00:39]} 8. Ng3 {[%emt 0:11:07]} a6 {[%emt 0:06:19]} 9. Nf5 {[%emt 0:05:08]} Bf8 {[%emt 0:01:53]} 10. Bd2 {[%emt 0:03:56]} g6 {[%emt 0:00:43]} 11. Ne3 {[%emt 0:02:06]} Bh6 {[%emt 0:03:33]} 12. h3 {[%emt 0:04:04]} h4 {[%emt 0:05:12]} 13. Be2 {[%emt 0:08:13]} Rb8 {[%emt 0:02:44]} 14. a3 {[%emt 0:07:09]} Kf8 {[%emt 0:00:55]} 15. Rb1 {[%emt 0:01:38]} Kg7 {[%emt 0:06:29]} 16. Qc2 {[%emt 0:02:29]} b6 {[%emt 0:06:56]} 17. b4 {[%emt 0:01:50]} Bf4 {[%emt 0:03:23]} 18. Rb2 {[%emt 0:11:25]} Nh5 {[%emt 0:05:30]} 19. Bg4 {[%emt 0:08:19]} Qg5 {[%emt 0:08:30]} 20. Ne2 {[%emt 0:03:18]} Ng3 {[%emt 0:05:42]} 21. Nxf4 {[%emt 0:07:28]} exf4 {[%emt 0:01:15]} 22. fxg3 {[%emt 0:09:20]} fxe3 23. Qc3+ {[%emt 0:01:20]} Qe5 {[%emt 0:02:21]} 24. Qxe3 {[%emt 0:00:30]} Qxg3+ {[%emt 0:04:47]} 25. Qxg3 {[%emt 0:00:42]} hxg3 {[%emt 0:00:03]} 26. Bxd7 {[%emt 0:03:17]} Bxd7 {[%emt 0:00:48]} 27. Bc3+ {[%emt 0:00:46]} f6 {[%emt 0:00:43]} 28. O-O {[%emt 0:02:39]} Rhf8 {[%emt 0:07:40]} 29. bxc5 {[%emt 0:00:16]} bxc5 {[%emt 0:00:02]} 30. Rxf6 {[%emt 0:00:49]} Rxb2 {[%emt 0:00:28]} 31. Rf2+ {[%emt 0:04:45]} Kg8 {[%emt 0:00:51]} 32. Rxb2 {[%emt 0:00:15]} Re8 {[%emt 0:02:54]} 33. Rb7 {[%emt 0:01:13]} Ba4 {[%emt 0:04:06]} 34. e5 {[%emt 0:00:47]} dxe5 {[%emt 0:01:51]} 35. Be1 {[%emt 0:00:01]} e4 {[%emt 0:04:41]} 36. Bxg3 {[%emt 0:00:06]} e3 {[%emt 0:01:56]} 37. Kf1 {[%emt 0:01:25]} Re4 {[%emt 0:04:03]} 38. d6 {[%emt 0:00:22]} Kf8 {[%emt 0:01:58]} 39. Ke2 {[%emt 0:00:47]} Rxc4 {[%emt 0:02:58]} 40. Kxe3 {[%emt 0:00:00]} Rc3+ {[%emt 0:00:00]} 41. Kf4 {[%emt 0:00:00]} g5+ {[%emt 0:00:00]} 42. Kg4 {[%emt 0:00:00]} Bd1+ {[%emt 0:00:00]} 43. Kf5 {[%emt 0:00:00]} Rxg3 {[%emt 0:00:00]} 44. Rb8+ {[%emt 0:00:00]} Kf7 {[%emt 0:00:00]} 45. d7 {[%emt 0:00:00]} Bc2+ {[%emt 0:00:00]} 46. Ke5 {[%emt 0:00:00]} Re3+ {[%emt 0:00:00]} 47. Kd6 {[%emt 0:00:00]} Be4 {[%emt 0:00:00]} 48. d8=Q {[%emt 0:00:00]} Rd3+ {[%emt 0:00:00]} 49. Kxc5 {[%emt 0:00:00]} Rxd8 {[%emt 0:00:00]} 50. Rxd8 {[%emt 0:00:00]} Bxg2 {[%emt 0:00:00]} 51. Rd3 {[%emt 0:00:00]} Kg6 {[%emt 0:00:00]} 52. Rg3 {[%emt 0:00:00]} Bf1 {[%emt 0:00:00]} 53. h4 {[%emt 0:00:00]} g4 {[%emt 0:01:09]} 54. Rxg4+ {[%emt 0:00:00]} Kh5 {[%emt 0:00:06]} 55. Rd4 {[%emt 0:00:00]} Be2 {[%emt 0:00:24]} 56. a4 {[%emt 0:00:00]} Bf1 {[%emt 0:00:52]} 57. a5 {[%emt 0:00:00]} Be2 {[%emt 0:00:37]} 58. Kb6 {[%emt 0:00:00]} Bf1 {[%emt 0:00:18]} 59. Kb7 {[%emt 0:00:00]} Be2 {[%emt 0:00:14]} 60. Rd6 {[%emt 0:00:00]} Kxh4 {[%emt 0:00:14]} 61. Rxa6 {[%emt 0:00:00]} 1-0

[Event "2nd Hersonissos Open 2018"]
[Site "Hersonissos"]
[Date "2018.06.21"]
[Round "6"]
[White "Lobersli, Henrik Oie"]
[Black "Pliev, Vladimir"]
[Result "1-0"]
[ECO "D80"]
[WhiteElo "2134"]
[BlackElo "1909"]
[Annotator "NA"]
[PlyCount "51"]
[EventDate "2018.06.16"]
[EventType "swiss"]
[EventCountry "GRE"]
[SourceTitle "playchess.com"]
[Source "ChessBase"]
[SourceQuality "1"]
[TimeControl "5400+30"]

1. d4 {[%emt 0:02:24]} Nf6 {[%emt 0:00:02]} 2. c4 {[%emt 0:00:22]} g6 {[%emt 0:00:07]} 3. Nc3 {[%emt 0:00:23]} d5 {[%emt 0:00:06]} 4. Bg5 {[%emt 0:00:48]} Ne4 {[%emt 0:00:25]} 5. Bh4 {[%emt 0:00:31]} Nxc3 {[%emt 0:00:16]} 6. bxc3 {[%emt 0:00:07]} Bg7 {[%emt 0:00:11]} 7. e3 {[%emt 0:01:18]} c5 {[%emt 0:01:23]} 8. cxd5 {[%emt 0:00:49]} Qxd5 {[%emt 0:00:51]} 9. Nf3 {[%emt 0:00:26]} Nc6 {[%emt 0:01:01]} 10. Be2 {[%emt 0:00:53]} cxd4 {[%emt 0:00:57]} 11. cxd4 {[%emt 0:00:19]} Qa5+ {[%emt 0:00:17]} 12. Qd2 {[%emt 0:00:34]} Qxd2+ {[%emt 0:00:50]} 13. Nxd2 {[%emt 0:00:52]} Bf5 {[%emt 0:01:44]} 14. Rc1 {[%emt 0:08:41]} Rd8 {[%emt 0:03:57]} 15. Nb3 {[%emt 0:20:21]} Be4 {[%emt 0:04:24]} 16. f3 {[%emt 0:04:49]} Bd5 {[%emt 0:04:11]} 17. Nc5 {[%emt 0:05:37]} Bh6 {[%emt 0:11:20]} 18. Rc3 f6 19. e4 {[%emt 0:08:23]} Bxe4 {[%emt 0:16:43]} 20. Nxe4 {[%emt 0:12:12]} Rxd4 {[%emt 0:03:41]} 21. Bf2 {[%emt 0:06:23]} Ra4 {[%emt 0:01:25]} 22. a3 {[%emt 0:01:19]} Kf7 {[%emt 0:06:23]} 23. Nc5 {[%emt 0:01:44]} Rf4 {[%emt 0:01:17]} 24. Bc4+ {[%emt 0:06:20]} e6 {[%emt 0:00:25]} 25. Bxe6+ {[%emt 0:03:11]} Ke7 {[%emt 0:00:28]} 26. g3 {[%emt 0:00:32]} 1-0

[Event "2nd Hersonissos Open 2018"]
[Site "Hersonissos"]
[Date "2018.06.21"]
[Round "6"]
[White "Umbetov, Kazybek"]
[Black "Kouvidis, Ioannis"]
[Result "1-0"]
[ECO "E94"]
[WhiteElo "2001"]
[BlackElo "1730"]
[Annotator "NA"]
[PlyCount "59"]
[EventDate "2018.06.16"]
[EventType "swiss"]
[EventCountry "GRE"]
[SourceTitle "playchess.com"]
[Source "ChessBase"]
[SourceQuality "1"]
[TimeControl "5400+30"]

1. d4 {[%emt 0:00:00]} Nf6 {[%emt 0:00:10]} 2. c4 {[%emt 0:00:00]} g6 {[%emt 0:00:06]} 3. Nc3 {[%emt 0:00:00]} Bg7 {[%emt 0:00:06]} 4. e4 {[%emt 0:00:00]} d6 {[%emt 0:00:21]} 5. Nf3 {[%emt 0:00:00]} O-O {[%emt 0:00:11]} 6. Be2 {[%emt 0:00:00]} e5 {[%emt 0:00:06]} 7. O-O {[%emt 0:00:01]} exd4 {[%emt 0:00:06]} 8. Nxd4 {[%emt 0:00:15]} Re8 {[%emt 0:00:05]} 9. f3 {[%emt 0:04:07]} Nc6 {[%emt 0:00:36]} 10. Be3 {[%emt 0:00:36]} Nh5 {[%emt 0:00:09]} 11. Nxc6 {[%emt 0:05:42]} bxc6 {[%emt 0:00:11]} 12. Qd2 {[%emt 0:04:49]} Qe7 {[%emt 0:03:48]} 13. Rfd1 {[%emt 0:04:20]} Be6 {[%emt 0:07:05]} 14. Rac1 {[%emt 0:04:20]} c5 {[%emt 0:04:44]} 15. g4 {[%emt 0:04:47]} Be5 {[%emt 0:14:04]} 16. gxh5 {[%emt 0:11:52]} Bxh2+ {[%emt 0:00:25]} 17. Kh1 {[%emt 0:00:24]} Qh4 {[%emt 0:01:47]} 18. Bg5 {[%emt 0:00:55]} Qg3 {[%emt 0:15:17]} 19. Bd3 {[%emt 0:01:52]} Bh3 {[%emt 0:04:07]} 20. Nd5 {[%emt 0:03:30]} Re5 {[%emt 0:20:13]} 21. Bf4 {[%emt 0:00:41]} Qxf3+ {[%emt 0:00:22]} 22. Kxh2 {[%emt 0:00:09]} Rxd5 {[%emt 0:02:31]} 23. cxd5 {[%emt 0:00:56]} Qxh5 {[%emt 0:01:32]} 24. Kg3 {[%emt 0:00:02]} Qg4+ {[%emt 0:03:16]} 25. Kf2 {[%emt 0:00:01]} Qh4+ {[%emt 0:01:10]} 26. Bg3 {[%emt 0:00:09]} Qf6+ {[%emt 0:00:13]} 27. Kg1 {[%emt 0:00:18]} Rb8 {[%emt 0:01:39]} 28. b3 {[%emt 0:00:16]} c4 {[%emt 0:01:07]} 29. Bxc4 {[%emt 0:00:25]} Re8 {[%emt 0:00:30]} 30. Qf2 {[%emt 0:00:55]} 1-0